fUST/lending_fUST_20251017
["ID","MTS","AMOUNT","RATE_DAILY","PERIOD"]
[391554906,1760650119008,2911.51855323,0.00028,3]
[391554907,1760650119672,10000.01,0.00025,30]
[391554908,1760650121192,665.69534842,0.000245,2]
[391554909,1760650121273,9334.31465158,0.0002,2]
[391554910,1760650121301,6260.31038911,0.0002,2]
[391554913,1760650122533,204.92982463,0.00021,2]
[391554914,1760650122980,3534.76978626,0.0002465,2]
[391554915,1760650123005,10000.01,0.0002465,2]
[391554916,1760650123028,10000.01,0.0002465,2]
[391554917,1760650123052,10000.01,0.0002465,2]
[391554918,1760650123076,10000.01,0.0002465,2]
[391554919,1760650123102,10000.01,0.0002465,2]
[391554920,1760650123129,10000.01,0.0002465,2]
[391554921,1760650123153,10000.01,0.0002465,2]
[391554922,1760650123178,11775.15961577,0.0002465,2]
[391554923,1760650123205,25000.0,0.0002465,2]
[391554924,1760650123234,44924.14823575,0.0002465,2]
[391554925,1760650123321,508.64070895,0.0002465,2]
[391554926,1760650123500,168.59,0.00024,14]
[391554927,1760650125099,400.0,0.0002,30]
[391554928,1760650125797,250.76646661,0.00024,30]
[391554929,1760650167125,-2387.9283186,0.00028902,2]
[391554930,1760650176597,429.96442,0.00013699,2]
[391554931,1760650176792,29.99260432,0.00020187,2]
[391554932,1760650176815,399.97181568,0.00020187,2]
[391554933,1760650176996,429.96442,0.00026676,2]
[391554935,1760650199745,-5000.0,0.00029705,2]
[391554936,1760650202660,-1200.0,0.00029704,2]
[391554937,1760650202689,-300.0,0.00029799,2]
[391554938,1760650202716,-300.0,0.00029799,2]
[391554939,1760650202745,-300.0,0.00029799,2]
[391554940,1760650202776,-300.0,0.00029799,2]
[391554941,1760650205668,-1977.67003823,0.000298,10]
[391554942,1760650207803,5000.0,0.00027,2]
[391554943,1760650208717,-3955.34007646,0.000298,10]
[391554944,1760650212567,713.0,0.00029041,120]
[391554945,1760650214269,5000.0,0.00026623,2]
[391554946,1760650214433,3178.09618532,0.0002229,2]
[391554947,1760650230069,3332.56927827,0.00027,2]
[391554989,1760650235225,-296.30288666,0.000298,10]
[391554990,1760650235236,-442.88554272,0.000298,10]
[391554991,1760650235248,-1350.1414177,0.000298,10]
[391554992,1760650235258,-205.29149132,0.00029905,2]
[391554993,1760650235268,-200.0,0.00029905,2]
[391554994,1760650235277,-300.0,0.0003,2]
[391554995,1760650235287,-300.0,0.0003,2]
[391554996,1760650235296,-330.0,0.00030005,2]
[391554997,1760650235307,-449.19740266,0.000301,5]
[391555021,1760650237802,-5582.1560482,0.000301,5]
[391555023,1760650237814,-16951.72087072,0.000301,5]
[391555025,1760650237825,-1692.25827454,0.000301,5]
[391555026,1760650237837,-690.50866658,0.000301,5]
[391555027,1760650237848,-1088.47541768,0.000301,5]
[391555028,1760650237860,-1456.79459003,0.000301,5]
[391555029,1760650237871,-40000.0,0.000301,5]
[391555030,1760650237931,-7999.34976535,0.000301,5]
[391555031,1760650237940,-170.0099912,0.00030295,2]
[391555032,1760650237949,-274.49901458,0.00030394,2]
[391555033,1760650237959,-204.09894027,0.00030394,2]
[391555034,1760650237970,-202.71617174,0.00030394,2]
[391555035,1760650237979,-153.63177932,0.00030394,2]
[391555036,1760650237988,-500.0,0.00030394,2]
[391555037,1760650237997,-301.02640913,0.00030394,2]
[391555038,1760650238006,-500.0,0.00030394,2]
[391555039,1760650238015,-231.02379499,0.00030394,2]
[391555040,1760650238024,-300.0,0.00030395,30]
[391555041,1760650238034,-300.0,0.00030395,30]
[391555042,1760650238043,-300.0,0.00030395,30]
[391555043,1760650238053,-300.0,0.00030395,30]
[391555044,1760650238062,-300.0,0.00030395,30]
[391555045,1760650238071,-300.0,0.00030395,30]
[391555046,1760650238081,-300.0,0.00030395,30]
[391555047,1760650238091,-15688.01384364,0.00030395,2]
[391555048,1760650238100,-352.5,0.00030605,2]
[391555049,1760650238110,-828.2322933,0.00030634,30]
[391555050,1760650238124,-526.57,0.0003079,10]
[391555051,1760650238133,-3655.47770501,0.000308,2]
[391555052,1760650238143,-5000.0,0.00030956,3]
[391555053,1760650238152,-375.0,0.00031205,2]
[391555054,1760650238161,-916.45478472,0.00031354,2]
[391555055,1760650238170,-221.270465,0.00031739,2]
[391555056,1760650238180,-1600.0,0.00031755,3]
[391555057,1760650238189,-2880.5139541,0.00031759,2]
[391555058,1760650238199,-397.5,0.00031805,2]
[391555059,1760650238209,-346.4634614,0.00031945,120]
[391555060,1760650238218,-400.0,0.00032123,3]
[391555061,1760650238228,-420.0,0.00032123,2]
[391555062,1760650238238,-207.0,0.00032123,3]
[391555063,1760650238248,-183.12601999,0.000324,2]
[391555064,1760650238258,-737.23823818,0.000324,2]
[391555065,1760650238267,-258.6570478,0.000324,2]
[391555066,1760650238276,-349.13725139,0.000324,2]
[391555067,1760650238288,-2375.17460854,0.000324,2]
[391555068,1760650238298,-409.13981417,0.000324,2]
[391555069,1760650238308,-160.0,0.000324,2]
[391555070,1760650238318,-1916.43443586,0.000324,2]
[391555071,1760650238327,-420.0,0.00032405,2]
[391555072,1760650238337,-402.02512307,0.00032451,2]
[391555073,1760650238346,-160.0,0.00032452,2]
[391555074,1760650238355,-417.15472785,0.00032452,2]
[391555075,1760650238364,-183.12601999,0.000327,2]
[391555076,1760650238374,-737.23823818,0.000327,2]
[391555077,1760650238384,-258.6570478,0.000327,2]
[391555078,1760650238393,-349.13725139,0.000327,2]
[391555079,1760650238403,-2375.17460854,0.000327,2]
[391555080,1760650238413,-409.13981417,0.000327,2]
[391555081,1760650238421,-1916.43443586,0.000327,2]
[391555082,1760650238431,-370.85983081,0.00032857,5]
[391555083,1760650238441,-617.65805952,0.00032857,5]
[391555084,1760650238450,-737.23823818,0.00033,2]
[391555085,1760650238459,-258.6570478,0.00033,2]
[391555086,1760650238469,-349.13725139,0.00033,2]
[391555087,1760650238478,-2375.17460854,0.00033,2]
[391555088,1760650238487,-409.13981417,0.00033,2]
[391555089,1760650238497,-1916.43443586,0.00033,2]
[391555090,1760650238506,-442.5,0.00033005,2]
[391555091,1760650238516,-602.65,0.00033023,3]
[391555092,1760650238525,-502.21,0.00033023,3]
[391555093,1760650238534,-500.0,0.00033033,5]
[391555094,1760650238544,-500.0,0.00033033,5]
[391555095,1760650238553,-500.0,0.00033033,5]
[391555096,1760650238563,-500.96617393,0.00033033,5]
[391555097,1760650238573,-500.0,0.00033033,2]
[391555098,1760650238582,-500.0,0.00033033,2]
[391555099,1760650238592,-300.0,0.00033047,30]
[391555100,1760650238601,-1702.800792,0.000331,11]
[391555101,1760650238611,-429.96442,0.00033165,2]
[391555102,1760650238620,-211.52532979,0.00033174,2]
[391555103,1760650238629,-745.08,0.00033263,3]
[391555104,1760650238639,-186.27,0.00033263,3]
[391555105,1760650238647,-251.11,0.00033264,3]
[391555106,1760650238656,-753.33,0.00033264,3]
[391555107,1760650238666,-372.54,0.00033264,3]
[391555108,1760650238676,-558.82,0.00033264,3]
[391555109,1760650238689,-417.15472785,0.00033264,3]
[391555110,1760650238698,-323.84197791,0.00033273,7]
[391555111,1760650238708,-202.72503546,0.00033273,7]
[391555112,1760650238717,-129563.24352228,0.00033274,20]
[391555113,1760650238728,-475.15459922,0.00033274,2]
[391555114,1760650238737,-471.82143073,0.00033274,60]
[391555115,1760650238746,-7903.0,0.00033274,30]
[391555116,1760650238756,-905.86043976,0.00033274,2]
[391555117,1760650238768,-757.03740008,0.00033274,60]
[391555118,1760650238777,-203.32846428,0.00033274,2]
[391555119,1760650238788,-7014.57826319,0.00033274,30]
[391555120,1760650238797,-17316.67269848,0.00033274,120]
[391555121,1760650238807,-10010.42997549,0.00033274,5]
[391555122,1760650238816,-3081.01260286,0.00033274,30]
[391555123,1760650238825,-4197.54440404,0.00033274,60]
[391555124,1760650238835,-1054.45340942,0.00033274,2]
[391555125,1760650238844,-417.15472785,0.00033274,120]
[391555126,1760650238854,-417.15472785,0.00033274,30]
[391555127,1760650238864,-737.23823818,0.000333,2]
[391555128,1760650238874,-258.6570478,0.000333,2]
[391555129,1760650238883,-349.13725139,0.000333,2]
[391555130,1760650238892,-2375.17460854,0.000333,2]
[391555131,1760650238902,-409.13981417,0.000333,2]
[391555132,1760650238911,-1916.43443586,0.000333,2]
[391555133,1760650238920,-509.14,0.000333,2]
[391555134,1760650238930,-465.0,0.00033605,2]
[391555135,1760650238940,-737.23823818,0.000337,2]
[391555136,1760650238949,-258.6570478,0.000337,2]
[391555137,1760650238958,-349.13725139,0.000337,2]
[391555138,1760650238968,-2375.17460854,0.000337,2]
[391555139,1760650238977,-409.13981417,0.000337,2]
[391555140,1760650238987,-1916.43443586,0.000337,2]
[391555141,1760650238996,-200.0,0.000337,10]
[391555142,1760650239006,-200.0,0.000337,10]
[391555143,1760650239016,-200.0,0.000337,10]
[391555144,1760650239026,-200.0,0.000337,10]
[391555145,1760650239036,-200.0,0.000337,10]
[391555146,1760650239046,-200.0,0.000337,10]
[391555147,1760650239055,-2375.17460854,0.00034,2]
[391555148,1760650239065,-1916.43443586,0.00034,2]
[391555149,1760650239074,-375.38,0.00034,14]
[391555150,1760650239088,-800.0,0.00034163,3]
[391555151,1760650239098,-487.5,0.00034205,2]
[391555152,1760650239107,-359.37110147,0.00034271,12]
[391555153,1760650239117,-1004.42,0.00034393,3]
[391555154,1760650239127,-2375.17460854,0.000344,2]
[391555155,1760650239136,-1916.43443586,0.000344,2]
[391555156,1760650239146,-2728.12,0.00034498,2]
[391555157,1760650239157,-380.0,0.00034629,2]
[391555158,1760650239170,-1490.16,0.00034633,3]
[391555159,1760650239181,-372.54,0.00034633,3]
[391555160,1760650239191,-502.22,0.00034634,3]
[391555161,1760650239200,-745.08,0.00034634,3]
[391555162,1760650239210,-2375.17460854,0.000347,2]
[391555163,1760650239220,-1916.43443586,0.000347,2]
[391555164,1760650239230,-1064.44513613,0.00034736,5]
[391555165,1760650239240,-510.0,0.00034805,2]
[391555166,1760650239250,-2375.17460854,0.000351,2]
[391555167,1760650239261,-1916.43443586,0.000351,2]
[391555168,1760650239272,-5000.0,0.0003529,4]
[391555169,1760650239282,-21180.5088492,0.0003539,3]
[391555170,1760650239292,-2375.17460854,0.000354,2]
[391555171,1760650239301,-1916.43443586,0.000354,2]
[391555172,1760650239311,-532.5,0.00035405,2]
[391555173,1760650239321,-500.0,0.00035767,5]
[391555174,1760650239330,-500.0,0.00035767,5]
[391555175,1760650239340,-211.52532978,0.00035899,2]
[391555176,1760650239350,-555.0,0.00036005,2]
[391555177,1760650239360,-501.05544168,0.00036315,5]
[391555178,1760650239370,-500.0,0.0003634,5]
[391555179,1760650239379,-500.0,0.0003634,5]
[391555180,1760650239388,-500.0,0.00036478,5]
[391555181,1760650239398,-500.0,0.00036478,5]
[391555182,1760650239407,-577.5,0.00036605,2]
[391555183,1760650239417,-500.0,0.00037026,5]
[391555184,1760650239426,-178.32162983,0.00037205,2]
[391555185,1760650239436,-509.14,0.000373,2]
[391555186,1760650239445,-500.0,0.00037915,5]
[391555187,1760650239455,-500.0,0.00037915,5]
[391555188,1760650239464,-280.02590769,0.00037915,5]
[391555189,1760650239474,-211.52532978,0.00038624,2]
[391555190,1760650239483,-500.0,0.00039443,120]
[391555191,1760650239493,-199.0,0.00039443,7]
[391555192,1760650239502,-400.0,0.00039443,120]
[391555193,1760650239511,-16701.0644,0.00039444,7]
[391555197,1760650239633,-417.15472785,0.00039444,7]
[391555198,1760650239644,-375.38,0.000395,14]
[391555199,1760650239654,-170.00999113,0.00039507,2]
[391555200,1760650239664,-429.96442,0.00039654,2]
[391555201,1760650239673,-199.0,0.00039717,8]
[391555202,1760650239686,-162.99201028,0.00039991,9]
[391555203,1760650239695,-869126.72620808,0.0004,120]
[391555204,1760650239705,-17014.52913325,0.0004,7]
[391555205,1760650239715,-417.15472785,0.0004,120]
[391555207,1760650239726,-2123.19,0.0004,14]
[391555209,1760650239735,-5456.24,0.00040248,2]
[391555210,1760650239745,-156.927969,0.00040949,20]
[391555211,1760650239754,-21180.5088492,0.00041086,3]
[391555212,1760650239764,-349.24,0.00041086,3]
[391555213,1760650239774,-50000.0,0.00041096,120]
[391555214,1760650239783,-156.927969,0.0004118,3]
[391555215,1760650239793,-417.15472785,0.000412,120]
[391555216,1760650239803,-156.132809,0.0004122,3]
[391555217,1760650239812,-156.927969,0.0004122,3]
[391555218,1760650239822,-155.390295,0.0004122,3]
[391555219,1760650239832,-21180.5088492,0.00041233,3]
[391555221,1760650239841,-417.15472785,0.00041243,3]
[391555222,1760650239851,-156.132809,0.0004126,3]
[391555223,1760650239860,-156.927969,0.0004126,3]
[391555224,1760650239869,-156.633821,0.0004126,3]
[391555225,1760650239878,-155.390295,0.0004126,3]
[391555226,1760650239887,-211.52532978,0.00041348,2]
[391555227,1760650239897,-500.0,0.00041433,120]
[391555229,1760650239906,-500.0,0.00041433,120]
[391555231,1760650239915,-1000.0,0.00041433,2]
[391555233,1760650239925,-1000.0,0.00041433,2]
[391555235,1760650239934,-1000.0,0.00041433,2]
[391555237,1760650239943,-887.0908933,0.00041433,2]
[391555239,1760650239952,-150.0,0.00041443,2]
[391555241,1760650239961,-79038.7918,0.00041444,7]
[391555243,1760650239971,-500.0,0.00042803,120]
[391555245,1760650239980,-118558.1878,0.00043444,30]
[391555247,1760650239989,-211.52532978,0.00044073,2]
[391555249,1760650239999,-209.52841335,0.00044173,120]
[391555251,1760650240008,-1000.0,0.00044457,8]
[391555253,1760650240017,-1099.87742813,0.00044754,93]
[391555255,1760650240026,-156.927969,0.00044788,60]
[391555257,1760650240036,-21180.5088492,0.0004499,3]
[391555259,1760650240045,-15000.0,0.00045,120]
[391555261,1760650240055,-2099.97,0.00045,30]
[391555263,1760650240064,-870.76032463,0.00045,20]
[391555265,1760650240073,-10364.92783549,0.00045,120]
[391555267,1760650240082,-23899.82752493,0.00045,120]
[391555269,1760650240092,-50844.97536396,0.00045,120]
[391555271,1760650240101,-193.0,0.00045,90]
[391555273,1760650240110,-7222.81229238,0.00045344,2]
[391555275,1760650240119,-468.33129304,0.000454,120]
[391555277,1760650240128,-21180.5088492,0.00045424,3]
[391555279,1760650240137,-417.15472785,0.00045434,3]
[391555281,1760650240146,-42361.0176983,0.00045434,3]
[391555283,1760650240156,-98798.4898,0.00045444,30]
[391555285,1760650240165,-500.0,0.00045473,2]
[391555287,1760650240174,-500.0,0.00045473,10]
[391555289,1760650240183,-156.132809,0.00045474,20]
[391555291,1760650240192,-156.927969,0.00045474,20]
[391555293,1760650240202,-155.390295,0.00045474,20]
[391555295,1760650240212,-12200.53,0.000457,44]
[391555297,1760650240221,-2123.19,0.000457,14]
[391555299,1760650240230,-156.132809,0.00045927,5]
[391555301,1760650240240,-156.927969,0.00045927,5]
[391555303,1760650240249,-63541.5265475,0.0004599,4]
[391555305,1760650240259,-8184.35,0.00045997,2]
[391555307,1760650240268,-143951.29706501,0.00046,120]
[391555309,1760650240279,-11825.525699,0.00046,120]
[391555311,1760650240289,-1000.0,0.00046021,2]
[391555313,1760650240298,-1000.0,0.00046021,10]
[391555315,1760650240307,-429.96442,0.00046143,2]
[391555317,1760650240316,-509.14,0.000464,7]
[391555319,1760650240326,-537.05869976,0.00046568,2]
[391555321,1760650240335,-1500.0,0.00046568,10]
[391555323,1760650240344,-151.0,0.000466,23]
[391555325,1760650240354,-1061.5603396,0.00046974,2]
[391555327,1760650240363,-21180.5088492,0.0004699,4]
[391555329,1760650240373,-13094.53966365,0.00047,7]
[391555330,1760650240382,-1012.054209,0.00047031,2]
[391555332,1760650240391,-375.38,0.000471,14]
[391555334,1760650240401,-2000.0,0.00047116,10]
[391555335,1760650240410,-56718.90700848,0.00047143,120]
[391555336,1760650240419,-170.3498113,0.00047144,2]
[391555337,1760650240428,-150.0,0.00047173,10]
[391555338,1760650240437,-150.0,0.00047173,7]
[391555339,1760650240446,-800.0,0.00047193,14]
[391555340,1760650240454,-800.0,0.00047195,14]
[391555341,1760650240464,-800.0,0.00047214,14]
[391555342,1760650240473,-500.0,0.00047243,120]
[391555343,1760650240482,-500.0,0.00047243,120]
[391555344,1760650240491,-500.0,0.00047243,120]
[391555345,1760650240500,-500.0,0.00047243,120]
[391555346,1760650240509,-500.0,0.00047243,120]
[391555347,1760650240518,-500.0,0.00047243,120]
[391555348,1760650240527,-500.0,0.00047243,120]
[391555349,1760650240537,-500.0,0.00047243,120]
[391555350,1760650240546,-500.0,0.00047243,120]
[391555351,1760650240555,-500.0,0.00047243,120]
[391555352,1760650240564,-500.0,0.00047243,120]
[391555353,1760650240573,-500.0,0.00047243,120]
[391555354,1760650240583,-500.0,0.00047243,120]
[391555355,1760650240592,-500.0,0.00047243,120]
[391555356,1760650240601,-500.0,0.00047243,120]
[391555357,1760650240610,-500.0,0.00047243,120]
[391555358,1760650240619,-500.0,0.00047243,120]
[391555359,1760650240628,-500.0,0.00047243,120]
[391555360,1760650240636,-500.0,0.00047243,120]
[391555361,1760650240645,-500.0,0.00047243,120]
[391555362,1760650240654,-500.0,0.00047243,120]
[391555363,1760650240663,-500.0,0.00047243,120]
[391555364,1760650240671,-500.0,0.00047243,120]
[391555365,1760650240680,-500.0,0.00047243,120]
[391555366,1760650240693,-500.0,0.00047243,120]
[391555368,1760650240702,-500.0,0.00047243,120]
[391555370,1760650240711,-500.0,0.00047243,120]
[391555372,1760650240720,-500.0,0.00047243,120]
[391555374,1760650240730,-500.0,0.00047243,120]
[391555376,1760650240739,-500.0,0.00047243,120]
[391555377,1760650240748,-500.0,0.00047243,120]
[391555379,1760650240758,-500.0,0.00047243,120]
[391555381,1760650240768,-500.0,0.00047243,120]
[391555383,1760650240777,-500.0,0.00047243,120]
[391555385,1760650240787,-500.0,0.00047243,120]
[391555387,1760650240795,-500.0,0.00047243,120]
[391555389,1760650240805,-500.0,0.00047243,120]
[391555391,1760650240814,-500.0,0.00047243,120]
[391555393,1760650240823,-500.0,0.00047243,120]
[391555395,1760650240832,-499.94,0.00047243,120]
[391555397,1760650240840,-151.0,0.00047243,120]
[391555399,1760650240850,-151.0,0.00047243,120]
[391555401,1760650240861,-151.0,0.00047243,120]
[391555403,1760650240870,-370000.0,0.00047243,2]
[391555405,1760650240879,-800.0,0.00047263,14]
[391555407,1760650240888,-200.0,0.00047295,120]
[391555409,1760650240897,-200.0,0.00047295,120]
[391555411,1760650240906,-159.53743148,0.00047315,120]
[391555413,1760650240916,-159.53743148,0.00047315,120]
[391555415,1760650240925,-181.75150421,0.00047315,120]
[391555417,1760650240934,-250.0,0.00047342,120]
[391555419,1760650240943,-250.0,0.00047342,120]
[391555422,1760650240953,-250.0,0.00047342,120]
[391555424,1760650240962,-250.0,0.00047342,120]
[391555426,1760650240972,-250.0,0.00047342,120]
[391555428,1760650240981,-250.0,0.00047342,120]
[391555430,1760650240990,-250.0,0.00047342,120]
[391555432,1760650241000,-250.0,0.00047342,120]
[391555433,1760650241009,-250.0,0.00047342,120]
[391555436,1760650241019,-250.0,0.00047342,120]
[391555438,1760650241029,-250.0,0.00047342,120]
[391555440,1760650241039,-250.0,0.00047342,120]
[391555442,1760650241048,-250.0,0.00047342,120]
[391555444,1760650241058,-250.0,0.00047342,120]
[391555446,1760650241067,-250.0,0.00047342,120]
[391555448,1760650241076,-250.0,0.00047342,120]
[391555450,1760650241086,-250.0,0.00047342,120]
[391555452,1760650241095,-250.0,0.00047342,120]
[391555454,1760650241104,-250.0,0.00047342,120]
[391555456,1760650241113,-250.0,0.00047342,120]
[391555458,1760650241123,-250.0,0.00047342,120]
[391555460,1760650241132,-250.0,0.00047342,120]
[391555462,1760650241141,-250.0,0.00047342,120]
[391555464,1760650241152,-250.0,0.00047342,120]
[391555466,1760650241162,-250.0,0.00047342,120]
[391555468,1760650241171,-250.0,0.00047342,120]
[391555470,1760650241180,-250.0,0.00047342,120]
[391555472,1760650241190,-250.0,0.00047342,120]
[391555474,1760650241199,-250.0,0.00047342,120]
[391555476,1760650241208,-250.0,0.00047342,120]
[391555478,1760650241218,-250.0,0.00047342,120]
[391555480,1760650241227,-250.0,0.00047342,120]
[391555482,1760650241236,-250.0,0.00047342,120]
[391555484,1760650241246,-250.0,0.00047342,120]
[391555486,1760650241255,-9840.59782002,0.00047342,120]
[391555488,1760650241265,-155.4203359,0.00047343,2]
[391555490,1760650241273,-2387.9506912,0.00047343,2]
[391555492,1760650241283,-163.0,0.00047343,30]
[391555494,1760650241293,-163.0,0.00047343,30]
[391555496,1760650241302,-163.0,0.00047343,30]
[391555498,1760650241311,-152.0,0.00047343,30]
[391555500,1760650241321,-152.0,0.00047343,30]
[391555502,1760650241330,-152.0,0.00047343,30]
[391555504,1760650241340,-152.0,0.00047343,30]
[391555506,1760650241349,-152.0,0.00047343,30]
[391555508,1760650241358,-152.0,0.00047343,30]
[391555510,1760650241368,-152.0,0.00047343,30]
[391555512,1760650241377,-152.0,0.00047343,30]
[391555514,1760650241386,-330.0,0.00047343,30]
[391555516,1760650241395,-152.0,0.00047343,30]
[391555518,1760650241404,-330.0,0.00047343,30]
[391555520,1760650241414,-330.0,0.00047343,30]
[391555522,1760650241424,-152.0,0.00047343,30]
[391555523,1760650241434,-330.0,0.00047343,30]
[391555526,1760650241443,-152.0,0.00047343,30]
[391555528,1760650241452,-330.0,0.00047343,30]
[391555529,1760650241461,-152.0,0.00047343,30]
[391555532,1760650241470,-330.0,0.00047343,30]
[391555533,1760650241479,-152.0,0.00047343,30]
[391555535,1760650241489,-330.0,0.00047343,30]
[391555538,1760650241498,-152.0,0.00047343,30]
[391555540,1760650241507,-330.0,0.00047343,30]
[391555541,1760650241516,-152.0,0.00047343,30]
[391555543,1760650241526,-152.0,0.00047343,30]
[391555546,1760650241536,-152.0,0.00047343,30]
[391555548,1760650241546,-152.0,0.00047343,30]
[391555550,1760650241555,-152.0,0.00047343,30]
[391555552,1760650241564,-152.0,0.00047343,30]
[391555554,1760650241574,-152.0,0.00047343,30]
[391555556,1760650241583,-152.0,0.00047343,30]
[391555557,1760650241594,-152.0,0.00047343,30]
[391555559,1760650241603,-152.0,0.00047343,30]
[391555562,1760650241613,-152.0,0.00047343,30]
[391555564,1760650241622,-152.0,0.00047343,30]
[391555566,1760650241631,-152.0,0.00047343,30]
[391555567,1760650241640,-152.0,0.00047343,30]
[391555569,1760650241649,-152.0,0.00047343,30]
[391555571,1760650241658,-152.0,0.00047343,30]
[391555573,1760650241667,-152.0,0.00047343,30]
[391555576,1760650241677,-152.0,0.00047343,30]
[391555577,1760650241689,-152.0,0.00047343,30]
[391555578,1760650241699,-152.0,0.00047343,30]
[391555579,1760650241709,-152.0,0.00047343,30]
[391555581,1760650241719,-152.0,0.00047343,30]
[391555583,1760650241730,-152.0,0.00047343,30]
[391555584,1760650241739,-152.0,0.00047343,30]
[391555586,1760650241749,-264.29383983,0.00047343,30]
[391555587,1760650241759,-7222.81229237,0.00047344,2]
[391555588,1760650241768,-800.0,0.00047393,14]
[391555589,1760650241778,-151.0,0.000474,26]
[391555590,1760650241789,-151.0,0.000474,25]
[391555591,1760650241798,-417.15472785,0.000474,30]
[391555592,1760650241808,-192.93927548,0.00047401,14]
[391555593,1760650241817,-381.89967,0.00047404,120]
[391555594,1760650241827,-800.0,0.00047412,14]
[391555595,1760650241836,-156.132809,0.00047435,2]
[391555596,1760650241845,-156.927969,0.00047435,2]
[391555597,1760650241855,-1000.0,0.00047443,120]
[391555598,1760650241864,-39519.3959,0.00047444,30]
[391555599,1760650241873,-151.0,0.00047444,120]
[391555600,1760650241882,-922.35288,0.00047444,120]
[391555601,1760650241891,-922.35288,0.00047444,120]
[391555602,1760650241901,-922.35288,0.00047444,120]
[391555603,1760650241909,-922.35288,0.00047444,120]
[391555604,1760650241918,-151.0,0.00047444,120]
[391555605,1760650241928,-151.0,0.00047444,120]
[391555606,1760650241937,-199.800285,0.00047444,120]
[391555607,1760650241947,-199.800285,0.00047444,120]
[391555608,1760650241956,-199.800285,0.00047444,120]
[391555609,1760650241966,-199.800285,0.00047444,120]
[391555610,1760650241975,-151.0,0.00047444,120]
[391555611,1760650241984,-279.75546,0.00047444,120]
[391555612,1760650241993,-1078329.4632,0.00047444,30]
[391555613,1760650242002,-500.0,0.00047444,17]
[391555614,1760650242011,-500.0,0.00047444,17]
[391555615,1760650242020,-500.0,0.00047473,10]
[391555616,1760650242030,-161.55689263,0.00047479,120]
[391555617,1760650242040,-161.55689264,0.00047479,120]
[391555618,1760650242049,-159.53743148,0.00047479,120]
[391555619,1760650242059,-159.53743147,0.00047479,120]
[391555620,1760650242068,-212.04342158,0.00047589,120]
[391555621,1760650242078,-2500.0,0.00047664,10]
[391555622,1760650242088,-24400.98,0.000477,47]
[391555623,1760650242097,-2123.19,0.000477,14]
[391555624,1760650242106,-250.0,0.00047721,10]
[391555625,1760650242115,-227.0321429,0.00047721,7]
[391555626,1760650242124,-161.55689263,0.00047808,120]
[391555627,1760650242134,-212.04342158,0.00047836,120]
[391555628,1760650242143,-159.53743148,0.00047945,120]
[391555629,1760650242152,-159.53743148,0.00047945,120]
[391555630,1760650242161,-181.75150421,0.00047945,120]
[391555631,1760650242257,-417.15472785,0.00048,10]
[391555632,1760650242267,-500.0,0.00048021,10]
[391555633,1760650242278,-212.04342158,0.00048055,120]
[391555634,1760650242288,-161.55689263,0.0004811,120]
[391555635,1760650242297,-161.55689264,0.0004811,120]
[391555636,1760650242308,-159.53743148,0.0004811,120]
[391555637,1760650242318,-159.53743147,0.0004811,120]
[391555638,1760650242328,-54789.61443821,0.000482,120]
[391555643,1760650243053,-200.0,0.000337,10]
[391555644,1760650243062,-123.17764402,0.000337,10]
[391555701,1760650246014,-76.82235598,0.000337,10]